fUSD/lending_fUSD_20251109
["ID","MTS","AMOUNT","RATE_DAILY","PERIOD"]
[393449551,1762671053140,-151.0,0.000248,7]
[393449552,1762671053151,-154.687613,0.000248,7]
[393449553,1762671053161,-151.0,0.000248,7]
[393449554,1762671053170,-151.0,0.000248,7]
[393449555,1762671053179,-151.0,0.000248,7]
[393449556,1762671053189,-151.0,0.000248,7]
[393449557,1762671053199,-151.0,0.000248,7]
[393449558,1762671053209,-168.329479,0.000248,7]
[393449559,1762671053219,-176.178797,0.000248,7]
[393449560,1762671053229,-151.0,0.000248,7]
[393449561,1762671053238,-151.0,0.000248,7]
[393449562,1762671053248,-151.0,0.000248,7]
[393449563,1762671053257,-151.0,0.000248,7]
[393449564,1762671053268,-212.837481,0.000248,7]
[393449565,1762671053278,-261.702404,0.000248,7]
[393449566,1762671053288,-212.837481,0.000248,7]
[393449567,1762671053298,-212.837481,0.000248,7]
[393449568,1762671053307,-212.837481,0.000248,7]
[393449569,1762671053317,-151.0,0.000248,7]
[393449570,1762671053326,-151.0,0.000248,7]
[393449571,1762671053339,-151.0,0.000248,7]
[393449572,1762671053349,-151.0,0.000248,7]
[393449573,1762671053358,-151.0,0.000248,7]
[393449574,1762671053367,-151.0,0.000248,7]
[393449575,1762671053378,-151.0,0.000248,7]
[393449576,1762671053387,-206.496713,0.000248,7]
[393449577,1762671053397,-206.496713,0.000248,7]
[393449578,1762671053407,-206.496713,0.000248,7]
[393449579,1762671053417,-206.496713,0.000248,7]
[393449580,1762671053427,-184.12,0.000248,11]
[393449581,1762671053436,-153532.3409952,0.000248,3]
[393449582,1762671053674,-612.28071739,0.000248,3]
[393449583,1762671053705,-199.72393622,0.00018532,2]
[393449584,1762671053715,-1960.16058378,0.000248,3]
[393449585,1762671053727,-374.12,0.000248,3]
[393449586,1762671053739,-2647.6954547,0.000248,3]
[393449587,1762671053911,-512.7196139,0.00021428,2]
[393449588,1762671053931,-1629.2803861,0.00021428,2]
[393449589,1762671053940,-388.15602792,0.000215,7]
[393449590,1762671053952,-343.93789999,0.000215,7]
[393449591,1762671054324,-1.7e-07,0.000215,7]
[393449592,1762671054339,-398.76957592,0.000215,7]
[393449593,1762671054349,-151.0,0.000215,7]
[393449594,1762671054359,-215.17742408,0.00024428,2]
[393449595,1762671054640,-199.12261654,0.00018258,2]
[393449596,1762671054650,-151.0,0.0001834,2]
[393449597,1762671054661,-531.28649681,0.00024428,2]
[393449598,1762671054680,-1130.0564135,0.000215,7]
[393449599,1762671054692,-0.8070905,0.000215,7]
[393449600,1762671054702,-521.7542035,0.00024428,2]
[393449601,1762671054870,-1277.11459065,0.00016596,2]
[393449602,1762671082892,-151.88280812,0.00016497,2]
[393449603,1762671085534,-187.2212776,0.00016595,2]
[393449604,1762671091064,-71.7787224,0.00016595,2]
[393449605,1762671091085,-166.69701286,0.00016595,2]
[393449606,1762671094691,-133.30298714,0.00016595,2]
[393449607,1762671094731,-177.08444831,0.00016596,2]
[393449608,1762671098369,-333.0,0.00016596,2]
[393449609,1762671128744,151.0,0.00039169,60]
[393449610,1762671129412,151.0,0.00039169,60]
[393449611,1762671130044,151.0,0.00039169,60]
[393449612,1762671158735,-10000.01,0.00016497,2]
[393449613,1762671159199,-10000.01,0.00016497,2]
[393449614,1762671159258,-1259.04647559,0.00016497,2]
[393449615,1762671159308,-7481.91704882,0.00016497,2]
[393449616,1762671164703,-1000.66331648,0.00016497,2]
[393449617,1762671164727,-7998.68336704,0.00016497,2]
[393449618,1762671164776,500.0,0.00039169,120]
[393449619,1762671165043,500.0,0.00039169,120]
[393449620,1762671165370,500.0,0.00039169,120]
[393449621,1762671165630,500.0,0.00039169,120]
[393449622,1762671165861,441.35919668,0.00039169,120]
[393449623,1762671182925,-500.0,0.00016495,2]
[393449624,1762671184041,-200.0,0.00016594,2]
[393449625,1762671189622,-168.0,0.00016594,2]
[393449626,1762671191773,-646.0,0.00016594,2]
[393449627,1762671191797,-228.46391312,0.00016594,2]
[393449628,1762671191820,-224.22517888,0.00016595,2]
[393449629,1762671193732,-168.38,0.00016595,2]
[393449630,1762671197857,-107.39482112,0.00016595,2]
[393449631,1762671197880,-227.95476617,0.00016595,2]
[393449632,1762671197902,-286.99145413,0.00016595,2]
[393449633,1762671197923,-377.65895858,0.00016595,2]
[393449635,1762671274416,1139.1,9.569e-05,2]
[393449636,1762671274788,1139.1,0.00010053,2]
[393449637,1762671275025,1139.1,0.00010537,2]
[393449638,1762671275226,1139.1,0.00011021,2]
[393449639,1762671275444,1139.1,0.00011505,2]
[393449640,1762671275642,1139.1,0.00011989,2]
[393449641,1762671275833,1139.1,0.00012473,2]
[393449642,1762671276027,1139.1,0.00012957,2]
[393449643,1762671276231,887.21,0.0001344,2]
[393449644,1762671276257,251.89,0.0001344,2]
[393449645,1762671276419,1139.1,0.00013924,2]
[393449646,1762671276614,1139.1,0.00014408,2]
[393449647,1762671276800,1139.1,0.00014892,2]
[393449648,1762671283680,-253.7913,0.00015376,2]
[393449649,1762671287156,-162.43659219,0.00015376,2]
[393449650,1762671289193,-722.87210781,0.00015376,2]
[393449651,1762671296273,-297.83299363,0.0001586,2]
[393449652,1762671298628,1000.0,0.00013699,2]
[393449654,1762671303596,-200.0,0.0001586,2]
[393449655,1762671304113,-641.26700637,0.0001586,2]
[393449656,1762671319327,-1139.1,0.00016344,2]
[393449657,1762671333988,-173.69421465,0.00016495,2]
[393449658,1762671349660,-80.09708535,0.00016495,2]
[393449659,1762671364608,-184.79538882,0.00016497,2]
[393449660,1762671364759,-135.11547369,0.00016497,2]
[393449661,1762671364790,-151.88280812,0.00016497,2]
[393449662,1762671366938,-293.02614203,0.00016594,2]
[393449663,1762671371380,-6.97385797,0.00016594,2]
[393449664,1762671371408,-293.02614203,0.00016594,2]
[393449665,1762671376327,-175.97,0.00016594,2]
[393449666,1762671376554,500.0,0.0003917,120]
[393449667,1762671376788,500.0,0.0003917,120]
[393449668,1762671377022,402.37296323,0.0003917,120]
[393449669,1762671380059,-195.0,0.00016594,2]
[393449670,1762671386829,1608.33,0.0003917,120]
[393449671,1762671387100,1608.33,0.0003917,120]
[393449672,1762671387538,1608.33,0.0003917,120]
[393449673,1762671387766,1608.33,0.0003917,120]
[393449674,1762671387990,1608.33,0.0003917,120]
[393449675,1762671388228,1608.33,0.0003917,120]
[393449676,1762671388482,1608.33,0.0003917,120]
[393449677,1762671388735,1608.33,0.0003917,120]
[393449678,1762671388979,1608.33,0.0003917,120]
[393449679,1762671389265,1608.33,0.0003917,120]
[393449680,1762671389503,1608.33,0.0003917,120]
[393449681,1762671390131,1608.33,0.0003917,120]
[393449682,1762671390393,1608.33,0.0003917,120]
[393449683,1762671390633,1608.33,0.0003917,120]
[393449684,1762671390866,1608.33,0.0003917,120]
[393449685,1762671391104,1608.33,0.0003917,120]
[393449686,1762671391349,1608.33,0.0003917,120]
[393449687,1762671391592,1608.33,0.0003917,120]
[393449688,1762671391819,1608.33,0.0003917,120]
[393449689,1762671392087,1608.33,0.0003917,120]
[393449690,1762671392333,1608.33,0.0003917,120]
[393449691,1762671392616,1608.33,0.0003917,120]
[393449692,1762671392839,1608.33,0.0003917,120]
[393449693,1762671393078,1608.41,0.0003917,120]
[393449694,1762671397859,2992.09,0.0003917,120]
[393449695,1762671398072,2992.09,0.0003917,120]
[393449696,1762671398305,2992.09,0.0003917,120]
[393449697,1762671398540,2992.09,0.0003917,120]
[393449698,1762671398783,2992.09,0.0003917,120]
[393449699,1762671399112,2992.09,0.0003917,120]
[393449700,1762671399363,2992.09,0.0003917,120]
[393449701,1762671399588,2992.09,0.0003917,120]
[393449702,1762671399876,2992.09,0.0003917,120]
[393449703,1762671400125,2992.09,0.0003917,120]
[393449704,1762671400454,2992.09,0.0003917,120]
[393449705,1762671400717,2992.09,0.0003917,120]
[393449706,1762671400946,2992.09,0.0003917,120]
[393449707,1762671401175,2992.09,0.0003917,120]
[393449708,1762671401413,2992.09,0.0003917,120]
[393449709,1762671401643,2992.09,0.0003917,120]
[393449710,1762671401885,2992.09,0.0003917,120]
[393449711,1762671402470,2992.09,0.0003917,120]
[393449712,1762671402698,2992.09,0.0003917,120]
[393449713,1762671402982,2992.09,0.0003917,120]
[393449714,1762671403259,2992.09,0.0003917,120]
[393449715,1762671403697,2992.09,0.0003917,120]
[393449716,1762671403781,2992.09,0.0003917,120]
[393449717,1762671404015,2992.16568264,0.0003917,120]
[393449718,1762671507027,-166.66,0.00016047,2]
[393449719,1762671507053,-68.20766906,0.00016385,2]
[393449720,1762671515510,3214.0,0.0003917,120]
[393449721,1762671519318,-98.45233094,0.00016385,2]
[393449722,1762671520059,-151.0,0.00016586,2]
[393449723,1762671520085,-104.68602713,0.00016586,2]
[393449724,1762671523360,-46.31397287,0.00016586,2]
[393449725,1762671523385,-151.0,0.00016586,2]
[393449726,1762671523410,-10.7774794,0.00016586,2]
[393449727,1762671528123,-140.2225206,0.00016586,2]
[393449728,1762671528147,-12.97385999,0.00016586,2]
[393449729,1762671535917,-5330.82,0.00016497,2]
[393449730,1762671536712,-232.99276123,0.00016497,2]
[393449731,1762671538522,-10000.01,0.00016497,2]
[393449732,1762671541545,-10000.01,0.00016497,2]
[393449733,1762671683107,-1149.1864648,0.00016472,2]
[393449734,1762671683136,-948.689092,0.00016484,2]
[393449735,1762671683172,-810.58812221,0.00016497,2]
[393449736,1762671683236,-4183.08264198,0.00016497,2]
[393449737,1762671683328,-10000.01,0.00016497,2]
[393449738,1762671686046,-10000.01,0.00016469,2]
[393449739,1762671689198,-10000.01,0.00016469,2]
[393449740,1762671689446,-10000.01,0.00016469,2]
[393449741,1762671692077,-10000.01,0.00016469,2]
[393449742,1762671692188,-10000.01,0.00016469,2]
[393449743,1762671695123,-10000.01,0.00016469,2]
[393449744,1762671695240,-10000.01,0.00016469,2]
[393449745,1762671734664,161.0,0.000301,120]
[393449746,1762671739178,161.0,0.000301,120]
[393449747,1762671743740,-165.59,0.00015936,2]
[393449748,1762671776068,-200.0,0.00015936,2]
[393449749,1762671807373,1449.00365374,0.00039154,120]
[393449750,1762671842542,955.98252219,0.00039154,120]
[393449753,1762671900321,-1852.42,0.00015807,2]
[393449754,1762671901138,-183.00963422,0.00016218,2]
[393449755,1762671916811,-300.86946426,0.00016218,2]
[393449759,1762671960861,-1209.29,0.00015757,2]
[393449760,1762671962169,-313.46361941,0.00016178,2]
[393449761,1762671966944,-403.01871217,0.00016178,2]
[393449762,1762671969713,-172.37660578,0.00016178,2]
[393449763,1762671971258,-156.52690454,0.00016178,2]
[393449764,1762671973864,-200.0,0.00016178,2]
[393449765,1762671977329,-203.11561204,0.00016178,2]
[393449770,1762672006263,-200.0,0.00015766,2]
[393449771,1762672006957,-320.05424811,0.00016178,2]
[393449772,1762672023100,-195.0,0.00016137,2]
[393449783,1762672042192,163.61,0.00039155,60]
[393449784,1762672045285,-284.71383156,0.00016118,2]
[393449786,1762672105730,999.0,0.00015682,3]
[393449787,1762672117183,150.0,0.00015653,120]
[393449788,1762672129514,-150.0,0.00015653,2]
[393449789,1762672130171,-300.0,0.00016137,2]
[393449790,1762672134371,-166.66,0.00016137,2]
[393449791,1762672136235,-239.96157287,0.00016137,2]
[393449792,1762672137895,-248.40788801,0.00016137,2]
[393449793,1762672142389,-266.93667939,0.00016137,2]
[393449795,1762672174940,-151.0,0.00015651,2]
[393449796,1762672175564,-434.4512371,0.0001574,2]
[393449797,1762672178901,-182.94134438,0.0001574,2]
[393449798,1762672181884,-246.17272463,0.00015661,2]
[393449799,1762672184190,257.79739421,0.00015644,2]
[393449800,1762672184441,-177.76598069,0.00015661,2]
[393449801,1762672190013,-1490.12161668,0.00015661,2]
[393449802,1762672191755,-276.0,0.0001574,2]
[393449803,1762672193862,-112.86741852,0.0001574,2]
[393449804,1762672193886,-103.28594465,0.00016178,2]
[393449805,1762672197595,-91.71405535,0.00016178,2]
[393449806,1762672197616,-178.94135297,0.00016178,2]
[393449807,1762672201055,-167.49177185,0.00015763,2]
[393449808,1762672209206,-273.76431158,0.00015763,2]
[393449809,1762672214020,-161.15,0.00015763,2]
[393449810,1762672215571,-251.82618244,0.00015763,2]
[393449811,1762672217191,-500.0,0.00015763,2]
[393449835,1762672233992,-268.02000949,0.00015763,2]
[393449836,1762672238363,-536.71772464,0.00015763,2]
[393449837,1762672238373,-195.0,0.0001597,2]
[393449838,1762672238383,-179.5482505,0.00016178,2]
[393449839,1762672238392,-1208.61367776,0.00016218,2]
[393449840,1762672238402,-237.71172418,0.00016218,2]
[393449841,1762672238412,-195.0,0.00016238,2]
[393449842,1762672238422,-284.71383154,0.00016258,2]
[393449843,1762672238431,-250.0,0.00016259,2]
[393449844,1762672238441,-161.0,0.000163,2]
[393449845,1762672238450,-161.0,0.000163,2]
[393449846,1762672238460,-250.0,0.00016349,2]
[393449847,1762672238470,-284.71383154,0.00016397,2]
[393449848,1762672238479,-509.3844798,0.00016397,2]
[393449849,1762672238489,-1200.0,0.00016416,2]
[393449850,1762672238498,-300.0,0.00016417,2]
[393449851,1762672238508,-300.0,0.00016417,2]
[393449852,1762672238518,-300.0,0.00016417,2]
[393449853,1762672238527,-300.0,0.00016417,2]
[393449854,1762672238537,-2390.41172719,0.00016418,2]
[393449855,1762672238547,-263.0,0.00016466,2]
[393449856,1762672238557,-31668.3434139,0.00016469,2]
[393449857,1762672238567,-500.0,0.00016486,2]
[393449858,1762672238578,-550.0,0.00016495,2]
[393449859,1762672238588,-270.0,0.00016496,2]
[393449860,1762672238598,-500.0,0.00016496,2]
[393449861,1762672238608,-500.0,0.00016496,2]
[393449862,1762672238618,-500.0,0.00016496,2]
[393449863,1762672238628,-538.32109464,0.00016496,2]
[393449864,1762672238638,-318.56503148,0.00016497,2]
[393449865,1762672238649,-21914.54792428,0.00016497,2]
[393449866,1762672238658,-500.0,0.00016573,2]
[393449867,1762672238668,-500.0,0.00016573,2]
[393449868,1762672238678,-500.0,0.00016573,2]
[393449869,1762672238688,-151.0,0.00016586,2]
[393449870,1762672238700,-151.0,0.00016586,2]
[393449871,1762672238711,-285.446191,0.00016586,2]
[393449872,1762672238720,-151.0,0.00016586,2]
[393449873,1762672238731,-151.0,0.00016586,2]
[393449874,1762672238743,-122.34104142,0.00016595,2]
[393449875,1762672238753,-315.01615017,0.00016595,2]
[393449876,1762672238763,-418212.80096104,0.00016596,2]
[393449877,1762672238921,-153.59182365,0.00016597,2]
[393449878,1762672238931,-1000.0,0.00016697,2]
[393449879,1762672238941,-166.66,0.00016723,2]
[393449880,1762672238950,-500.0,0.00016796,2]
[393449881,1762672238960,-1139.1,0.00016828,2]
[393449882,1762672238969,-724.43654782,0.00016856,2]
[393449883,1762672238980,-617.93,0.0001691,2]
[393449884,1762672238990,-150.99,0.00016922,2]
[393449885,1762672238999,-299.99,0.00016922,4]
[393449886,1762672239009,-9999.99,0.00016922,2]
[393449887,1762672239019,-9999.99,0.00016922,2]
[393449888,1762672239029,-250.0,0.00017,2]
[393449889,1762672239039,-166.66,0.00017061,2]
[393449890,1762672239049,-1257.48495089,0.00017084,2]
[393449891,1762672239059,-1000.0,0.00017121,2]
[393449892,1762672239068,-1000.0,0.00017121,2]
[393449893,1762672239077,-500.0,0.00017121,2]
[393449894,1762672239087,-231.85,0.00017263,2]
[393449895,1762672239097,-861.0,0.00017301,2]
[393449896,1762672239106,-1139.1,0.00017312,2]
[393449897,1762672239116,-861.0,0.00017326,2]
[393449898,1762672239126,-195.0,0.00017339,2]
[393449899,1762672239135,-426.30578535,0.00017339,2]
[393449900,1762672239145,-300.0,0.00017339,2]
[393449901,1762672239155,-861.0,0.00017358,2]
[393449902,1762672239165,-861.0,0.00017368,2]
[393449903,1762672239174,-861.0,0.00017381,2]
[393449904,1762672239185,-166.66,0.00017398,2]
[393449905,1762672239196,-861.0,0.00017414,2]
[393449906,1762672239205,-500.0,0.00017504,2]
[393449907,1762672239216,-1000.0,0.00017668,2]
[393449908,1762672239227,-1500.0,0.00017668,2]
[393449909,1762672239238,-166.66,0.00017736,2]
[393449910,1762672239248,-195.0,0.00017751,2]
[393449911,1762672239258,-300.0,0.00017751,2]
[393449912,1762672239269,-364.17274812,0.00017795,2]
[393449913,1762672239279,-300.0,0.00017795,2]
[393449914,1762672239289,-2500.0,0.00017795,2]
[393449915,1762672239299,-3676.96633259,0.00017795,4]
[393449916,1762672239310,-193.0,0.00017795,2]
[393449917,1762672239320,-1139.1,0.00017795,2]
[393449918,1762672239331,-451.92,0.00017805,2]
[393449919,1762672239341,-310.38743545,0.0001784,2]
[393449920,1762672239352,-250.0,0.0001784,2]
[393449921,1762672239363,-300.0,0.0001784,2]
[393449922,1762672239373,-1090.72386166,0.0001784,2]
[393449923,1762672239384,-195.0,0.0001784,2]
[393449924,1762672239395,-300.0,0.0001784,2]
[393449925,1762672239406,-300.0,0.0001784,2]
[393449926,1762672239417,-300.0,0.0001784,2]
[393449927,1762672239427,-861.0,0.00017891,2]
[393449928,1762672239437,-420.0,0.00017942,2]
[393449929,1762672239446,-420.0,0.00017942,2]
[393449930,1762672239457,-174.226309,0.00018,2]
[393449931,1762672239467,-157.89045,0.00018,2]
[393449932,1762672239477,-835.48,0.00018,7]
[393449933,1762672239489,-1680.0,0.0001803,2]
[393449934,1762672239499,-861.0,0.00018033,2]
[393449935,1762672239508,-861.0,0.00018061,2]
[393449936,1762672239517,-2000.0,0.000181,2]
[393449937,1762672239527,-861.0,0.00018101,2]
[393449938,1762672239537,-298.43740158,0.00018164,2]
[393449939,1762672239546,-508.31279467,0.00018216,2]
[393449940,1762672239556,-861.0,0.00018228,2]
[393449941,1762672239566,-1139.1,0.00018279,2]
[393449942,1762672239576,-861.0,0.00018292,2]
[393449943,1762672239585,-861.0,0.00018313,2]
[393449944,1762672239595,-162.61440694,0.00018329,2]
[393449945,1762672239605,-660.65,0.0001834,2]
[393449946,1762672239615,-861.0,0.00018349,2]
[393449947,1762672239626,-21914.54792423,0.00018408,2]
[393449948,1762672239636,-861.0,0.00018423,2]
[393449949,1762672239646,-23736.97879509,0.00018453,2]
[393449950,1762672239656,-227.67797223,0.00018462,2]
[393449951,1762672239666,-298.43740158,0.00018485,2]
[393449952,1762672239675,-861.0,0.00018492,2]
[393449953,1762672239685,-861.0,0.00018501,2]
[393449954,1762672239695,-150.0,0.00018532,2]
[393449955,1762672239709,-500.0,0.00018532,2]
[393449956,1762672239719,-150.0,0.00018532,2]
[393449957,1762672239728,-472.0,0.00018532,2]
[393449958,1762672239740,-500.0,0.00018532,2]
[393449959,1762672239750,-162.69130558,0.00018532,2]
[393449960,1762672239760,-153.89248172,0.00018532,2]
[393449961,1762672239770,-150.0,0.00018532,2]
[393449962,1762672239782,-150.0,0.00018532,2]
[393449963,1762672239792,-861.0,0.00018576,2]
[393449964,1762672239801,-861.0,0.00018606,2]
[393449965,1762672239811,-150.0,0.00018669,2]
[393449966,1762672239820,-500.0,0.00018669,2]
[393449967,1762672239830,-150.0,0.00018669,2]
[393449968,1762672239840,-472.0,0.00018669,2]
[393449969,1762672239849,-500.0,0.00018669,2]
[393449970,1762672239859,-150.0,0.00018669,2]
[393449971,1762672239869,-1139.1,0.00018763,2]
[393449972,1762672239878,-861.0,0.00018786,2]
[393449973,1762672239887,-298.43740158,0.00018805,2]
[393449974,1762672239897,-200.0,0.00018806,2]
[393449975,1762672239906,-500.0,0.00018806,2]
[393449976,1762672239915,-162.27802841,0.00018806,2]
[393449977,1762672239925,-472.0,0.00018806,2]
[393449978,1762672239934,-500.0,0.00018806,2]
[393449979,1762672239943,-281.92420023,0.00018806,2]
[393449980,1762672239955,-861.0,0.00018849,2]
[393449981,1762672239970,-861.0,0.00018891,2]
[393449982,1762672239987,-500.0,0.000189,6]
[393449983,1762672240000,-5000.0,0.00018902,2]
[393449984,1762672240013,-472.0,0.00018943,2]
[393449985,1762672240028,-500.0,0.00018943,2]
[393449986,1762672240044,-300.0,0.00019,2]
[393449987,1762672240059,-207886.01810996,0.00019,2]
[393449988,1762672240072,-861.0,0.00019002,2]
[393449989,1762672240085,-318.56503143,0.00019003,2]
[393449990,1762672240097,-861.0,0.00019029,2]
[393449991,1762672240109,-861.0,0.00019055,2]
[393449992,1762672240124,-472.0,0.0001908,2]
[393449993,1762672240137,-500.0,0.0001908,2]
[393449994,1762672240152,-1273.0,0.00019092,2]
[393449996,1762672240166,-813.0,0.00019092,2]
[393449997,1762672240180,-1189.0,0.00019092,2]
[393449998,1762672240193,-906.0,0.00019092,2]
[393449999,1762672240207,-6478.0,0.00019092,2]
[393450000,1762672240221,-6661.0,0.00019092,2]
[393450001,1762672240234,-559.0,0.00019092,2]
[393450002,1762672240247,-200.0,0.00019108,2]
[393450003,1762672240260,-150.0,0.00019108,2]
[393450004,1762672240276,-150.115,0.00019108,2]
[393450005,1762672240290,-150.0,0.00019108,2]
[393450006,1762672240304,-150.177,0.00019108,2]
[393450007,1762672240316,-150.0,0.00019108,2]
[393450008,1762672240327,-211.33,0.00019108,2]
[393450009,1762672240339,-288.312,0.00019108,2]
[393450010,1762672240355,-188.931,0.00019108,2]
[393450011,1762672240369,-162.145,0.00019108,2]
[393450012,1762672240380,-269.989,0.00019108,2]
[393450013,1762672240391,-209.91,0.00019108,2]
[393450014,1762672240404,-266.384,0.00019108,2]
[393450015,1762672240419,-221.249,0.00019108,2]
[393450016,1762672240432,-608.0,0.00019108,2]
[393450017,1762672240443,-1316.0,0.00019108,2]
[393450018,1762672240455,-3432.26,0.00019108,2]
[393450019,1762672240468,-576.362,0.00019108,2]
[393450020,1762672240480,-823.0,0.00019108,2]
[393450021,1762672240492,-1602.924,0.00019108,2]
[393450022,1762672240504,-989.37,0.00019108,2]
[393450023,1762672240516,-298.43740158,0.00019126,2]
[393450024,1762672240530,-472.0,0.00019217,2]
[393450025,1762672240542,-500.0,0.00019217,2]
[393450026,1762672240555,-472.0,0.00019354,2]
[393450027,1762672240568,-500.0,0.00019354,2]
[393450028,1762672240580,-989.37,0.00019382,2]
[393450029,1762672240592,-298.73583898,0.00019447,2]
[393450030,1762672240605,-472.0,0.00019491,2]
[393450031,1762672240617,-500.0,0.00019491,2]
[393450032,1762672240629,-587.0,0.00019608,2]
[393450033,1762672240642,-587.0,0.00019608,2]
[393450034,1762672240654,-472.0,0.00019628,2]
[393450035,1762672240667,-500.0,0.00019628,2]
[393450036,1762672240680,-989.37,0.00019656,2]
[393450037,1762672240692,-3098.0,0.000197,2]
[393450038,1762672240707,-472.0,0.00019765,2]
[393450039,1762672240719,-500.0,0.00019765,2]
[393450040,1762672240733,-161.0,0.000198,3]
[393450042,1762672240746,-161.0,0.000198,3]
[393450044,1762672240760,-158.99,0.000198,3]
[393450046,1762672240774,-2351.0,0.00019803,2]
[393450047,1762672240787,-589.956,0.00019839,2]
[393450048,1762672240800,-472.0,0.00019902,2]
[393450049,1762672240812,-500.0,0.00019902,2]
[393450050,1762672240824,-165.59,0.0001992,2]
[393450051,1762672240837,-989.37,0.0001993,2]
[393450052,1762672240849,-472.0,0.00020039,2]
[393450053,1762672240861,-500.0,0.00020039,2]
[393450054,1762672240873,-22685.289367,0.00020054,2]
[393450055,1762672240887,-472.0,0.00020176,2]
[393450056,1762672240899,-500.0,0.00020176,2]
[393450057,1762672240911,-1000.0,0.00020187,2]
[393450058,1762672240923,-989.37,0.00020204,2]
[393450059,1762672240935,-500.0,0.00020306,2]
[393450060,1762672240947,-150.0,0.00020309,2]
[393450061,1762672240959,-472.0,0.00020313,2]
[393450062,1762672240972,-500.0,0.00020313,2]
[393450063,1762672240984,-21914.54792423,0.0002032,2]
[393450064,1762672240996,-151.0,0.00020406,2]
[393450065,1762672241008,-23736.97879509,0.00020409,2]
[393450066,1762672241020,-472.0,0.0002045,2]
[393450067,1762672241033,-500.0,0.0002045,2]
[393450068,1762672241045,-989.37,0.00020478,2]
[393450069,1762672241057,-174.226309,0.000205,2]
[393450070,1762672241069,-157.89045,0.000205,2]
[393450071,1762672241081,-472.0,0.00020587,2]
[393450072,1762672241092,-395.34756632,0.00020587,2]
[393450073,1762672241105,-162.61440694,0.0002062,2]
[393450074,1762672241117,-773.0,0.000207,2]
[393450075,1762672241130,-447.0,0.000207,2]
[393450076,1762672241143,-472.0,0.00020724,2]
[393450077,1762672241155,-989.37,0.00020752,2]
[393450078,1762672241167,-3372.45,0.00020759,2]
[393450079,1762672241179,-1000.0,0.000208,2]
[393450080,1762672241192,-5061.7722494,0.00020854,2]
[393450081,1762672241205,-472.0,0.00020861,2]
[393450082,1762672241218,-472.0,0.00020998,2]
[393450083,1762672241231,-350.0,0.00021,2]
[393450084,1762672241242,-478.20968403,0.00021002,2]
[393450085,1762672241252,-989.37193284,0.00021025,2]
[393450086,1762672241427,-231.85,0.00021049,2]
[393450087,1762672241440,-153.59182362,0.00021089,2]
[393450088,1762672241449,-472.0,0.00021135,2]
[393450089,1762672241459,-2000.0,0.00021229,2]
[393450090,1762672241468,-200.0,0.00021229,2]
[393450091,1762672241478,-472.0,0.00021272,2]
[393450092,1762672241488,-472.0,0.00021409,2]
[393450093,1762672241498,-823.0,0.00021429,2]
[393450094,1762672241508,-823.0,0.00021429,2]
[393450095,1762672241518,-318.56503143,0.0002151,2]
[393450096,1762672241528,-472.0,0.00021546,2]
[393450097,1762672241538,-3943.0,0.00021648,2]
[393450098,1762672241547,-474.61479719,0.00021683,2]
[393450099,1762672241558,-3292.0,0.00021751,2]
[393450100,1762672241567,-2000.0,0.000218,2]